bitfinex-derivatives/quotes_BTCF0:USTF0_20240925
["timestamp","ask_amount","ask_price","bid_price","bid_amount"]
[1727262050880,0.3608,63680.0,63674.0,0.0037]
[1727262051083,0.3608,63680.0,63678.0,0.04700487]
[1727262051283,0.3608,63680.0,63679.0,0.04700487]
[1727262051780,0.3608,63680.0,63676.0,0.06272362]
[1727262051980,0.3608,63680.0,63679.0,0.04707136]
[1727262052483,0.38902006,63680.0,63678.0,0.04907136]
[1727262052675,0.39502006,63680.0,63678.0,0.04807136]
[1727262053075,0.39502006,63680.0,63678.0,0.001]
[1727262053485,0.39502006,63680.0,63677.0,0.04707136]
[1727262053688,0.06276235,63678.0,63677.0,0.04707136]
[1727262053986,0.06276235,63679.0,63677.0,0.04707136]
[1727262054184,0.06276235,63679.0,63675.0,0.06272362]
[1727262054185,0.06276235,63679.0,63678.0,0.04707136]
[1727262054387,0.40502006,63680.0,63678.0,0.001]
[1727262054773,0.40502006,63680.0,63677.0,0.04807136]
[1727262054774,0.01,63678.0,63677.0,0.04807136]
[1727262055485,0.06275264,63678.0,63676.0,0.04707136]
[1727262055875,0.16275264,63678.0,63676.0,0.04707136]
[1727262056784,0.16275264,63678.0,63670.0,0.0302]
[1727262056785,0.4678,63678.0,63677.0,0.001]
[1727262057378,0.49326071,63678.0,63677.0,0.001]
[1727262057581,0.55519101,63678.0,63677.0,0.002]
[1727262058087,0.4768,63678.0,63677.0,0.002]
[1727262058386,0.4768,63678.0,63677.0,0.001]
[1727262058977,0.4698,63678.0,63677.0,0.001]
[1727262059176,0.4768,63678.0,63677.0,0.002]
[1727262065586,0.116,63678.0,63677.0,0.002]
[1727262065781,0.4768,63678.0,63677.0,0.002]
[1727262069689,0.50226129,63678.0,63677.0,0.002]
[1727262073193,0.50226145,63678.0,63677.0,0.002]
[1727262076685,0.14146145,63678.0,63677.0,0.002]
[1727262076885,0.86306145,63678.0,63677.0,0.002]
[1727262078100,0.86306126,63678.0,63677.0,0.002]
[1727262081199,0.90494994,63678.0,63677.0,0.002]
[1727262082200,0.29323141,63678.0,63677.0,0.002]
[1727262082392,0.04146126,63678.0,63677.0,0.002]
[1727262082902,0.04145769,63678.0,63677.0,0.002]
[1727262085799,0.016,63678.0,63677.0,0.002]
[1727262086008,0.04145769,63678.0,63677.0,0.002]
[1727262087414,0.08369087,63678.0,63677.0,0.002]
[1727262087611,0.04145769,63678.0,63677.0,0.002]
[1727262089206,0.016,63678.0,63677.0,0.002]
[1727262089415,0.016,63678.0,63677.0,0.04907136]
[1727262091505,0.016,63678.0,63677.0,0.002]
[1727262099624,0.116,63678.0,63677.0,0.002]
[1727262100114,0.17870042,63678.0,63677.0,0.002]
[1727262101318,0.116,63678.0,63677.0,0.002]
[1727262101923,0.4768,63678.0,63677.0,0.002]
[1727262102609,0.4768,63678.0,63672.0,0.04707136]
[1727262102809,0.1,63673.0,63671.0,0.04707136]
[1727262103016,0.0627019,63672.0,63671.0,0.04707136]
[1727262103518,0.06269992,63672.0,63671.0,0.04707136]
[1727262103716,0.1,63673.0,63670.0,0.04707136]
[1727262104015,0.16270248,63671.0,63670.0,0.04707136]
[1727262104221,0.16270248,63671.0,63668.0,0.0307]
[1727262104222,0.21583649,63671.0,63668.0,0.0307]
[1727262104416,0.17700988,63670.0,63668.0,0.0307]
[1727262104810,0.17700988,63669.0,63668.0,0.0307]
[1727262105010,0.13519019,63669.0,63668.0,0.0307]
[1727262105218,0.06728121,63669.0,63668.0,0.0307]
[1727262105412,0.10972867,63669.0,63668.0,0.0307]
[1727262106522,0.11772867,63669.0,63668.0,0.0317]
[1727262106709,0.18500988,63669.0,63668.0,0.0317]
[1727262107517,0.21311101,63669.0,63668.0,0.0327]
[1727262107821,0.10338234,63669.0,63668.0,0.0327]
[1727262108016,0.10338234,63669.0,63668.0,0.0317]
[1727262108223,0.11338234,63669.0,63668.0,0.0327]
[1727262108721,0.22311101,63669.0,63668.0,0.0327]
[1727262108938,0.11338234,63669.0,63668.0,0.0327]
[1727262109308,0.22311101,63669.0,63668.0,0.0327]
[1727262109513,0.11338234,63669.0,63668.0,0.0327]
[1727262111217,0.04610113,63669.0,63668.0,0.0327]
[1727262115530,0.04610113,63669.0,63668.0,0.21346589]
[1727262115730,0.04610113,63669.0,63668.0,0.29194744]
[1727262116734,0.04610113,63669.0,63668.0,0.21346589]
[1727262117039,0.04610113,63669.0,63668.0,0.29194744]
[1727262117330,0.04610113,63669.0,63668.0,0.39191952]
[1727262117534,0.04610113,63669.0,63668.0,0.39191862]
[1727262117929,0.04610113,63669.0,63668.0,0.391924]
[1727262118130,0.04610113,63669.0,63668.0,0.31343707]
[1727262118435,0.04610113,63669.0,63668.0,0.39192485]
[1727262118625,0.04610113,63669.0,63668.0,0.31343707]
[1727262118827,0.04610113,63669.0,63668.0,0.39192747]
[1727262119225,0.04610113,63669.0,63668.0,0.21346589]
[1727262119927,0.04610113,63669.0,63668.0,0.26055989]
[1727262120130,0.04610113,63669.0,63668.0,0.21346589]
[1727262120829,0.12448339,63669.0,63668.0,0.21346589]
[1727262121629,0.12447138,63669.0,63668.0,0.21346589]
[1727262121832,0.04610113,63669.0,63668.0,0.21346589]
[1727262122435,0.07156159,63669.0,63668.0,0.21346589]
[1727262124223,0.04610113,63669.0,63668.0,0.21346589]
[1727262124434,0.12447997,63669.0,63668.0,0.21346589]
[1727262124846,0.07156067,63669.0,63668.0,0.21346589]
[1727262125033,0.12448384,63669.0,63668.0,0.21346589]
[1727262125945,0.04610113,63669.0,63668.0,0.21346589]
[1727262126449,0.04610113,63669.0,63668.0,0.3134623]
[1727262127241,0.04610113,63669.0,63668.0,0.29197372]
[1727262127435,0.04610113,63669.0,63668.0,0.31344737]
[1727262127942,0.04610113,63669.0,63668.0,0.21346589]
[1727262128634,0.04610113,63669.0,63668.0,0.31343727]
[1727262129439,0.04610113,63669.0,63668.0,0.41343727]
[1727262131747,0.04610113,63669.0,63668.0,0.31343727]
[1727262133339,0.11361441,63669.0,63668.0,0.21346589]
[1727262137148,0.11361441,63669.0,63668.0,1.38466589]
[1727262137149,0.08551328,63669.0,63668.0,1.38466589]
[1727262138247,0.08551328,63669.0,63668.0,0.78466589]
[1727262138838,0.08551328,63669.0,63668.0,1.38466589]
[1727262138839,0.04345934,63669.0,63668.0,1.38466589]
[1727262139249,0.04345813,63669.0,63668.0,1.38466589]
[1727262140948,0.04345813,63669.0,63668.0,0.91346589]
[1727262141248,0.018,63669.0,63668.0,1.48456695]
[1727262141452,0.0037,63675.0,63668.0,1.48456695]
[1727262141652,0.0037,63675.0,63673.0,0.17850056]
[1727262141952,0.0282223,63675.0,63674.0,0.17823754]
[1727262142150,0.42354108,63678.0,63674.0,0.17823754]
[1727262142454,0.42354108,63678.0,63676.0,0.06280067]
[1727262143140,0.45185389,63678.0,63676.0,0.06280067]
[1727262143457,0.45885389,63678.0,63676.0,0.06280067]
[1727262143651,0.06274108,63677.0,63676.0,0.06280067]
[1727262144054,0.45885389,63678.0,63676.0,0.06280067]
[1727262144241,0.06274108,63677.0,63676.0,0.06280067]
[1727262144442,0.46065389,63678.0,63676.0,0.06280067]
[1727262144754,0.42354108,63677.0,63676.0,0.06380067]
[1727262145148,0.42354108,63677.0,63676.0,0.06480067]
[1727262145341,0.3908,63677.0,63676.0,0.04910048]
[1727262145545,0.4227,63677.0,63676.0,0.002]
[1727262145747,0.4227,63677.0,63676.0,0.04910025]
[1727262145942,0.4227,63677.0,63676.0,0.001]
[1727262146150,0.4227,63677.0,63676.0,0.002]
[1727262146461,0.4237,63677.0,63676.0,0.002]
[1727262147655,0.3618,63677.0,63676.0,0.002]
[1727262148348,0.06869209,63677.0,63676.0,0.002]
[1727262148554,0.42949209,63677.0,63676.0,0.002]
[1727262148756,0.42949175,63677.0,63676.0,0.002]
[1727262151355,0.53922042,63677.0,63676.0,0.002]
[1727262151960,0.17842042,63677.0,63676.0,0.002]
[1727262152156,0.53922042,63677.0,63676.0,0.002]
[1727262152656,0.17842042,63677.0,63676.0,0.002]
[1727262152853,0.42949175,63677.0,63676.0,0.002]
[1727262153460,0.3618,63677.0,63676.0,0.002]
[1727262153753,0.42950383,63677.0,63676.0,0.002]
[1727262154950,0.5392325,63677.0,63676.0,0.002]
[1727262156563,0.3618,63677.0,63676.0,0.002]
[1727262158463,0.4618,63677.0,63676.0,0.002]
[1727262159459,0.48725911,63677.0,63676.0,0.002]
[1727262159855,0.58139346,63677.0,63676.0,0.002]
[1727262160461,0.48725911,63677.0,63676.0,0.002]
[1727262162063,0.4618,63677.0,63676.0,0.002]
[1727262162265,0.84806097,63677.0,63676.0,0.002]
[1727262171468,1.13508463,63677.0,63676.0,0.002]
[1727262171865,0.99433441,63677.0,63676.0,0.002]
[1727262172073,0.99433441,63677.0,63668.0,0.0074]
[1727262172264,0.4608,63669.0,63665.0,0.0318]
[1727262172463,0.1,63666.0,63665.0,0.0318]
[1727262172668,0.52825567,63666.0,63659.0,0.0306]
[1727262172968,0.52825567,63666.0,63655.0,0.0074]
[1727262172969,0.4608,63660.0,63655.0,0.0074]
[1727262173173,0.4608,63660.0,63653.0,0.0324]
[1727262173174,0.1,63656.0,63653.0,0.0324]
[1727262173358,0.3608,63654.0,63653.0,0.0324]
[1727262173564,0.42770058,63654.0,63653.0,0.0324]
[1727262175371,0.38626574,63654.0,63653.0,0.0324]
[1727262175577,0.38626574,63654.0,63653.0,0.0374]
[1727262175973,0.38626574,63654.0,63653.0,0.0444]
[1727262176479,0.41463369,63654.0,63653.0,0.0444]
[1727262178465,0.38916795,63654.0,63653.0,0.0444]
[1727262179075,0.02836795,63654.0,63653.0,0.0444]
[1727262179378,0.3608,63654.0,63653.0,0.0444]
[1727262181365,0.3608,63654.0,63653.0,0.012]
[1727262182972,0.3608,63654.0,63653.0,0.008]
[1727262183184,0.3608,63654.0,63653.0,0.004]
[1727262185875,1.43212,63654.0,63645.0,0.0074]
[1727262186079,0.4608,63646.0,63641.0,0.0311]
[1727262186278,0.1,63643.0,63641.0,0.0311]
[1727262186580,0.1,63643.0,63637.0,0.0301]
[1727262186771,0.1,63638.0,63637.0,0.0604]
[1727262187172,0.1,63638.0,63637.0,0.2379131]
[1727262188081,0.1,63638.0,63637.0,0.2519131]
[1727262188883,0.1,63638.0,63637.0,0.2649131]
[1727262189886,0.3608,63641.0,63637.0,0.2649131]
[1727262190188,0.1,63638.0,63637.0,0.2649131]
[1727262192492,0.1,63638.0,63637.0,0.2519131]
[1727262192687,0.1,63638.0,63637.0,0.2649131]
[1727262192891,0.1,63638.0,63637.0,0.2509131]
[1727262193187,0.1,63638.0,63637.0,0.2649131]
[1727262193582,0.3608,63641.0,63637.0,0.2649131]
[1727262193787,0.1,63638.0,63637.0,0.2649131]
[1727262199600,0.1,63638.0,63637.0,0.3120262]
[1727262200498,0.1,63638.0,63637.0,0.2649131]
[1727262203090,0.1,63638.0,63637.0,0.6257131]
[1727262203697,0.1,63638.0,63637.0,0.67273108]
[1727262204288,0.1,63638.0,63637.0,0.6257131]
[1727262205705,0.1,63638.0,63637.0,0.4482]
[1727262206789,0.1,63638.0,63637.0,0.0874]
[1727262209295,0.1,63638.0,63637.0,0.15020067]
[1727262209501,0.1,63638.0,63637.0,0.11990067]
[1727262210199,0.1,63638.0,63637.0,0.08980067]
[1727262211292,0.1,63638.0,63637.0,0.027]
[1727262212909,0.1,63638.0,63637.0,0.08980699]
[1727262213106,0.1,63638.0,63637.0,0.027]
[1727262213805,0.4608,63638.0,63637.0,0.027]
[1727262215309,0.52337133,63638.0,63637.0,0.027]
[1727262216210,0.52351033,63638.0,63637.0,0.027]
[1727262216599,0.4608,63638.0,63637.0,0.027]
[1727262216798,0.52351033,63638.0,63637.0,0.027]
[1727262218706,0.4608,63638.0,63637.0,0.08986103]
[1727262219013,0.4608,63638.0,63637.0,0.027]
[1727262219705,0.1,63638.0,63637.0,0.027]
[1727262220009,0.4608,63638.0,63637.0,0.027]
[1727262221402,0.52347758,63638.0,63637.0,0.027]
[1727262221605,0.4608,63638.0,63637.0,0.08986103]
[1727262221801,0.3608,63638.0,63637.0,0.027]
[1727262222005,0.4608,63638.0,63637.0,0.027]
[1727262222500,0.1,63638.0,63637.0,0.027]
[1727262223607,0.1,63638.0,63637.0,0.08983118]
[1727262225406,0.1,63638.0,63637.0,0.027]
[1727262225599,0.1,63638.0,63637.0,0.08983021]
[1727262225801,0.1,63638.0,63637.0,0.027]
[1727262226616,0.1,63639.0,63637.0,0.027]
[1727262227202,0.1,63639.0,63638.0,0.06283085]
[1727262227516,0.1,63639.0,63637.0,0.027]
[1727262228212,0.16267758,63639.0,63638.0,0.06283177]
[1727262229706,0.16267758,63639.0,63638.0,0.07483177]
[1727262230717,0.16269018,63639.0,63638.0,0.07483177]
[1727262231014,0.16269018,63639.0,63638.0,0.08883445]
[1727262231612,0.16270025,63639.0,63638.0,0.08883445]
[1727262231818,0.16270025,63639.0,63638.0,0.026]
[1727262232003,0.1,63639.0,63638.0,0.026]
[1727262232208,0.16270025,63639.0,63638.0,0.026]
[1727262234117,0.1,63639.0,63638.0,0.026]
[1727262234510,0.16270025,63639.0,63638.0,0.026]
[1727262234713,0.16270025,63639.0,63638.0,0.08884339]
[1727262235011,0.16270025,63639.0,63638.0,0.026]
[1727262235213,0.16270025,63639.0,63638.0,0.08884448]
[1727262235415,0.16270025,63639.0,63638.0,0.026]
[1727262238323,0.1,63639.0,63638.0,0.08885189]
[1727262238812,0.16271284,63639.0,63638.0,0.026]
[1727262239220,0.1,63639.0,63638.0,0.026]
[1727262239921,0.1,63639.0,63638.0,0.08885318]
[1727262240122,0.1,63639.0,63638.0,0.026]
[1727262240622,0.1,63639.0,63638.0,0.08885452]
[1727262241020,0.1,63639.0,63638.0,0.026]
[1727262241223,0.1,63639.0,63638.0,0.08885452]
[1727262241725,0.1,63639.0,63638.0,0.026]
[1727262241926,0.1,63639.0,63638.0,0.08885619]
[1727262242225,0.1,63639.0,63638.0,0.08885791]
[1727262242421,0.1,63639.0,63638.0,0.026]
[1727262246022,0.1,63639.0,63638.0,0.08886085]
[1727262248014,0.1,63639.0,63638.0,0.026]
[1727262248219,0.1,63639.0,63638.0,0.08886085]
[1727262248630,0.1,63639.0,63638.0,0.026]
[1727262248926,0.1,63639.0,63638.0,0.08886085]
[1727262249525,0.1,63639.0,63638.0,0.026]
[1727262250330,0.07821417,63639.0,63638.0,0.026]
[1727262250527,0.1,63639.0,63638.0,0.026]
[1727262252625,0.4608,63639.0,63638.0,0.026]
[1727262252829,0.53901417,63639.0,63638.0,0.026]
[1727262254032,0.4608,63639.0,63638.0,0.026]
[1727262257529,0.4608,63639.0,63638.0,0.08886085]
[1727262258030,0.4608,63639.0,63638.0,0.026]
[1727262258428,0.4608,63639.0,63638.0,0.08886085]
[1727262262437,0.4608,63639.0,63638.0,0.026]
[1727262266560,0.1,63639.0,63638.0,0.08886085]
[1727262266841,0.1,63639.0,63638.0,0.026]
[1727262267840,0.1,63639.0,63638.0,0.08886085]
[1727262268040,0.10602909,63641.0,63638.0,0.08886085]
[1727262268041,0.10602909,63641.0,63638.0,0.20549845]
[1727262268336,0.06638277,63645.0,63640.0,0.1]
[1727262268528,0.03187329,63645.0,63642.0,0.07857039]
[1727262268733,0.02817329,63645.0,63643.0,0.13184471]
[1727262268926,0.0037,63648.0,63643.0,0.2090322]
[1727262269126,0.0037,63648.0,63647.0,0.06281951]
[1727262269332,0.16268277,63649.0,63647.0,0.06281951]
[1727262269645,0.1,63649.0,63646.0,0.06281951]
[1727262270636,0.1,63649.0,63645.0,0.06281951]
[1727262270637,0.12861472,63649.0,63645.0,0.06281951]
[1727262270829,0.09129749,63649.0,63647.0,0.04708725]
[1727262271029,0.09129749,63649.0,63646.0,0.05308725]
[1727262271030,0.1,63648.0,63646.0,0.05308725]
[1727262271245,0.06261638,63647.0,63646.0,0.05308725]
[1727262271546,0.1,63648.0,63646.0,0.05308725]
[1727262271547,0.16261638,63648.0,63646.0,0.05308725]
[1727262271837,0.06261638,63647.0,63646.0,0.05708725]
[1727262272041,0.06261638,63647.0,63646.0,0.05108725]
[1727262272247,0.1,63648.0,63646.0,0.004]
[1727262273845,0.1,63648.0,63646.0,0.01]
[1727262274142,0.17821417,63648.0,63646.0,0.01]
[1727262277046,1.57821417,63647.0,63640.0,0.04708725]
[1727262277233,1.57821417,63647.0,63639.0,0.04708725]
[1727262277234,0.4608,63641.0,63639.0,0.04708725]
[1727262278645,0.4608,63641.0,63639.0,0.06008725]
[1727262279049,0.4608,63641.0,63640.0,0.01]
[1727262279547,0.4608,63641.0,63640.0,0.05708725]
[1727262279843,0.4608,63641.0,63640.0,0.04708725]
[1727262280146,0.4618,63641.0,63640.0,0.05808725]
[1727262280654,0.4618,63641.0,63640.0,0.011]
[1727262281542,0.4628,63641.0,63640.0,0.02]
[1727262284348,0.48838828,63641.0,63640.0,0.02]
[1727262285750,0.48838828,63641.0,63637.0,0.06281951]
[1727262285949,0.1,63638.0,63637.0,0.06281951]
[1727262287054,0.1,63638.0,63637.0,0.07481951]
[1727262287553,0.101,63638.0,63637.0,0.08081951]
[1727262288543,0.101,63638.0,63637.0,0.06881951]
[1727262288743,0.102,63638.0,63637.0,0.08081951]
[1727262289063,0.4628,63638.0,63637.0,0.08081951]
[1727262289657,0.4628,63638.0,63637.0,0.018]
[1727262293262,0.3628,63638.0,63637.0,0.018]
[1727262293454,0.4628,63638.0,63637.0,0.018]
[1727262294061,0.3628,63638.0,63637.0,0.018]
[1727262294360,0.4628,63638.0,63637.0,0.018]
[1727262294562,0.3628,63638.0,63637.0,0.018]
[1727262294748,0.3628,63638.0,63637.0,0.1979297]
[1727262295154,0.3628,63638.0,63637.0,0.26074921]
[1727262298362,0.4628,63638.0,63637.0,0.1979297]
[1727262299752,0.3628,63638.0,63637.0,0.1979297]
[1727262299956,0.4628,63638.0,63637.0,0.1979297]
[1727262306568,0.102,63638.0,63637.0,0.1979297]
[1727262307359,0.4628,63638.0,63632.0,0.0037]
[1727262307565,0.4608,63633.0,63628.0,0.037]
[1727262307770,0.1,63629.0,63627.0,0.07857039]
[1727262308667,0.1,63629.0,63628.0,0.006]
[1727262309065,0.12594149,63629.0,63628.0,0.006]
[1727262309470,0.12694149,63629.0,63628.0,0.006]
[1727262311064,0.12794149,63629.0,63627.0,0.008]
[1727262312165,0.02694149,63629.0,63628.0,0.001]
[1727262312473,0.12794149,63629.0,63628.0,0.001]
[1727262312976,0.12794149,63629.0,63627.0,0.001]
[1727262313173,0.1,63628.0,63627.0,0.001]
[1727262314768,0.4608,63628.0,63624.0,0.17472238]
[1727262314975,0.1,63625.0,63624.0,0.17472238]
[1727262316275,0.101,63625.0,63624.0,0.17472238]
[1727262316475,0.102,63625.0,63624.0,0.17472238]
[1727262329678,0.102,63625.0,63622.0,0.17635015]
[1727262329878,0.1,63623.0,63621.0,0.16772846]
[1727262330283,0.1,63623.0,63620.0,0.07857039]
[1727262330482,0.1,63623.0,63621.0,0.16772846]
[1727262331075,0.1,63623.0,63622.0,0.002]
[1727262331587,0.1,63623.0,63622.0,0.1770891]
[1727262331783,0.101,63623.0,63622.0,0.1750891]
[1727262332195,0.101,63623.0,63621.0,0.1833809]
[1727262332493,0.101,63623.0,63620.0,0.07857039]
[1727262332792,0.102,63623.0,63622.0,0.1833809]
[1727262332992,0.102,63623.0,63622.0,0.002]
[1727262333290,0.102,63623.0,63622.0,0.17432684]
[1727262334184,0.102,63623.0,63622.0,0.17232684]
[1727262334383,0.102,63623.0,63622.0,0.25089723]
[1727262335097,0.102,63623.0,63622.0,0.25289723]
[1727262335395,0.102,63623.0,63622.0,0.35350927]
[1727262335785,0.102,63623.0,63622.0,0.27493888]
[1727262337094,0.102,63623.0,63622.0,0.27497214]
[1727262341296,0.102,63623.0,63622.0,0.1026453]
[1727262346390,0.102,63623.0,63622.0,0.18124266]
[1727262346997,0.134,63623.0,63622.0,0.18124266]
[1727262347300,0.134,63623.0,63622.0,0.08059736]
[1727262348189,0.134,63623.0,63622.0,0.002]
[1727262359302,0.4948,63623.0,63622.0,0.002]
[1727262360501,0.55750683,63623.0,63622.0,0.002]
[1727262361307,0.4948,63623.0,63622.0,0.002]
[1727262362413,0.3948,63623.0,63622.0,0.002]
[1727262362609,0.4948,63623.0,63622.0,0.002]
[1727262363408,0.3628,63623.0,63622.0,0.002]
[1727262363608,0.4628,63623.0,63622.0,0.002]
[1727262364913,0.4944,63623.0,63622.0,0.002]
[1727262370712,0.1336,63623.0,63622.0,0.002]
[1727262370918,0.4944,63623.0,63622.0,0.002]
[1727262371118,0.4628,63623.0,63622.0,0.002]
[1727262371819,0.4628,63623.0,63622.0,0.04911525]
[1727262374209,0.4628,63623.0,63622.0,0.002]
[1727262374619,0.52554377,63623.0,63622.0,0.002]
[1727262376019,0.4628,63623.0,63622.0,0.002]
[1727262377319,0.54124606,63623.0,63622.0,0.002]
[1727262377822,1.08828334,63623.0,63614.0,0.0037]
[1727262378120,0.3608,63615.0,63612.0,0.07860668]
[1727262378331,0.4608,63613.0,63606.0,0.0786229]
[1727262378530,0.4608,63613.0,63601.0,0.0042]
[1727262378531,0.4608,63607.0,63601.0,0.10172802]
[1727262378715,0.4608,63607.0,63600.0,0.09432802]
[1727262378716,0.1,63602.0,63600.0,0.09432802]
[1727262378920,0.0037,63606.0,63602.0,0.17953851]
[1727262379225,0.0037,63606.0,63600.0,0.09432802]
[1727262379226,0.1,63603.0,63601.0,0.16828365]
[1727262379426,0.1,63603.0,63602.0,0.09958905]
[1727262380219,0.1,63603.0,63601.0,0.09965496]
[1727262380615,0.1,63603.0,63602.0,0.17674296]
[1727262380829,0.101,63603.0,63602.0,0.17674296]
[1727262382423,0.102,63603.0,63602.0,0.17674296]
[1727262383029,0.101,63603.0,63602.0,0.17674296]
[1727262383335,0.102,63603.0,63602.0,0.17674296]
[1727262384017,0.102,63603.0,63601.0,0.09965496]
[1727262385425,0.101,63603.0,63601.0,0.09965496]
[1727262385618,0.102,63603.0,63601.0,0.09965496]
[1727262386024,0.102,63603.0,63598.0,0.0322]
[1727262386328,0.1,63599.0,63598.0,0.0322]
[1727262386522,0.1,63599.0,63598.0,0.13138494]
[1727262386727,0.1,63599.0,63598.0,0.29787751]
[1727262386928,0.1,63599.0,63598.0,0.19869257]
[1727262387626,0.101,63599.0,63598.0,0.19869257]
[1727262388623,0.001,63599.0,63598.0,0.19869257]
[1727262388934,0.002,63599.0,63598.0,0.19869257]
[1727262389630,0.0037,63606.0,63598.0,1.27041257]
[1727262389935,0.0037,63606.0,63603.0,0.4608]
[1727262390125,0.16271836,63617.0,63603.0,0.4608]
[1727262390126,0.02591332,63608.0,63603.0,0.4608]
[1727262390318,0.0037,63610.0,63607.0,0.1]
[1727262390524,0.3608,63612.0,63608.0,0.0616]
[1727262390725,0.3608,63612.0,63609.0,0.0311]
[1727262391030,0.3608,63612.0,63610.0,0.16974195]
[1727262392029,0.38681501,63612.0,63610.0,0.16974195]
[1727262392629,0.38781501,63612.0,63610.0,0.16974195]
[1727262393338,0.1,63611.0,63610.0,0.17174195]
[1727262393834,0.1,63611.0,63610.0,0.17374195]
[1727262395429,0.101,63611.0,63610.0,0.17074195]
[1727262395633,0.102,63611.0,63610.0,0.17174195]
[1727262397336,0.102,63611.0,63610.0,0.002]
[1727262416348,0.16471836,63611.0,63610.0,0.002]
[1727262418357,0.002,63611.0,63610.0,0.57364]
[1727262418558,0.002,63611.0,63610.0,1.79783318]
[1727262418751,0.0037,63614.0,63610.0,1.79783318]
[1727262418955,0.0037,63617.0,63613.0,0.19430875]
[1727262419154,0.06645563,63621.0,63618.0,0.1]
[1727262419350,0.06275563,63621.0,63619.0,0.09882181]
[1727262419551,0.0037,63624.0,63619.0,0.37016757]
[1727262419552,0.06275563,63622.0,63619.0,0.37016757]
[1727262419752,0.06275563,63622.0,63621.0,0.1]
[1727262419957,0.06275563,63622.0,63621.0,0.19882181]
[1727262420154,0.06275563,63622.0,63621.0,0.36909293]
[1727262420559,0.06275563,63622.0,63621.0,0.46340168]
[1727262421058,0.06275563,63622.0,63621.0,0.46440168]
[1727262421059,0.06375563,63622.0,63621.0,0.46440168]
[1727262421263,0.06375563,63622.0,63621.0,0.37009293]
[1727262421865,0.06475563,63622.0,63621.0,0.37209293]
[1727262422253,0.06475563,63622.0,63621.0,0.45053013]
[1727262422456,0.06475563,63622.0,63621.0,0.35053013]
[1727262422764,0.06475563,63622.0,63621.0,0.25470832]
[1727262422765,0.06375563,63622.0,63621.0,0.25470832]
[1727262423059,0.06375563,63622.0,63621.0,0.17627112]
[1727262426561,0.001,63622.0,63621.0,0.17627112]
[1727262430064,0.101,63622.0,63621.0,0.17627112]
[1727262431960,0.001,63622.0,63621.0,0.17627112]
[1727262440581,0.0037,63624.0,63621.0,0.17627112]
[1727262440777,0.02537418,63625.0,63621.0,0.17627112]
[1727262441081,0.1,63626.0,63621.0,0.17627112]
[1727262441667,0.1627443,63626.0,63621.0,0.17627112]
[1727262441869,0.001,63624.0,63621.0,0.17527112]
[1727262442481,0.1627443,63626.0,63621.0,0.17227112]
[1727262442786,0.1637443,63626.0,63621.0,0.17527112]
[1727262443182,0.001,63624.0,63621.0,0.17527112]
[1727262443481,0.001,63624.0,63622.0,0.1]
[1727262443877,0.001,63624.0,63623.0,0.17036684]
[1727262444381,0.0637443,63624.0,63623.0,0.17036684]
[1727262445277,0.0627443,63624.0,63622.0,0.1676827]
[1727262445678,0.0627443,63624.0,63623.0,0.001]
[1727262445876,0.0647443,63624.0,63623.0,0.001]
[1727262446180,0.002,63624.0,63623.0,0.1686827]
[1727262446576,0.18045479,63624.0,63623.0,0.001]
[1727262446884,0.12747995,63624.0,63623.0,0.001]
[1727262447072,0.15907995,63624.0,63623.0,0.001]
[1727262447277,0.15707995,63624.0,63623.0,0.001]
[1727262447585,0.15807995,63624.0,63623.0,0.001]
[1727262448184,0.16107995,63624.0,63623.0,0.001]
[1727262448688,0.16307995,63624.0,63615.0,0.06266314]
[1727262448878,0.06276782,63616.0,63612.0,0.0784372]
[1727262449076,0.07845977,63621.0,63615.0,0.27667401]
[1727262449077,0.06276782,63618.0,63615.0,0.27667401]
[1727262449272,0.06276782,63618.0,63617.0,0.06285314]
[1727262449672,0.0037,63623.0,63617.0,0.37138857]
[1727262449984,0.0037,63623.0,63621.0,0.07857307]
[1727262450177,0.004,63624.0,63621.0,0.07857307]
[1727262450372,0.06276782,63625.0,63622.0,0.16770655]
[1727262450888,0.42356782,63625.0,63622.0,0.16770655]
[1727262451089,0.1,63624.0,63622.0,0.16770655]
[1727262451886,0.001,63623.0,63622.0,0.16770655]
[1727262452385,0.1,63624.0,63622.0,0.16770655]
[1727262452587,0.101,63624.0,63622.0,0.16770655]
[1727262453193,0.1,63624.0,63622.0,0.16970655]
[1727262453689,0.1,63624.0,63622.0,0.17070655]
[1727262454491,0.101,63624.0,63622.0,0.16970655]
[1727262454691,0.101,63624.0,63622.0,0.16770655]
[1727262454894,0.101,63624.0,63622.0,0.16970655]
[1727262455593,0.101,63624.0,63622.0,0.16870655]
[1727262455895,0.101,63624.0,63622.0,0.24727962]
[1727262456297,0.1,63624.0,63622.0,0.24727962]
[1727262456490,0.102,63624.0,63622.0,0.24727962]
[1727262456887,0.102,63624.0,63622.0,0.16870655]
[1727262456888,0.06276782,63623.0,63622.0,0.16870655]
[1727262457986,0.06476782,63623.0,63622.0,0.16870655]
[1727262458184,0.002,63623.0,63622.0,0.16870655]
[1727262458497,0.002,63623.0,63622.0,0.23157171]
[1727262465001,0.002,63623.0,63622.0,0.34597275]
[1727262466289,0.002,63623.0,63622.0,0.16870655]
[1727262466488,0.002,63623.0,63622.0,0.24727962]
[1727262466697,0.002,63623.0,63622.0,0.3460044]
[1727262469796,0.1,63624.0,63622.0,0.34497496]
[1727262469995,0.1,63624.0,63622.0,0.24627962]
[1727262469996,0.003,63623.0,63622.0,0.24627962]
[1727262470196,0.003,63623.0,63622.0,0.34497773]
[1727262470908,0.103,63624.0,63622.0,0.34497773]
[1727262471103,0.103,63624.0,63622.0,0.24627962]
[1727262471906,0.103,63624.0,63622.0,0.07857307]
[1727262472206,0.103,63624.0,63617.0,0.3608]